Cogmind - Beta 15 @@@ ROGUE MODE // 2025.09.18 @ 22:40:57 Player: GermanMO Result: Destroyed by S-10 Pest with Light Assault Rifle Performance ------------- Evolutions (1) 500 Regions Visited (2) 400 Robots Destroyed (31) 155 Value Destroyed (458) 458 Prototype IDs (0) 0 Alien Tech Used (0) 0 Bonus (0) 0 TOTAL SCORE: 1513 Bonus ------- None Cogmind --------- Core Integrity 0/400 Matter 175/300 Energy 50/100 System Corruption 1% Temperature Cool (0) Movement Core (50) Location -9/Materials Parts ------- > --- POWER (1) -------- (None) > --- PROPULSION (2) --- (None) > --- UTILITY (4) ------ Terrain Scan Processor Terrain Scan Processor Terrain Scan Processor Improved Targeting Computer > --- WEAPON (2) ------- (None) > --- INVENTORY (5) ---- (None) Peak State ------------ > --- POWER ------------ Light Ion Engine > --- PROPULSION ------- Aluminum Leg Aluminum Leg > --- UTILITY ---------- Small Storage Unit Improved Terrain Scanner > --- WEAPON ----------- Beam Cannon Light Assault Rifle > --- INVENTORY -------- Terrain Scan Processor Terrain Scan Processor Terrain Scan Processor Terrain Scan Processor Grenade Launcher Rocket Launcher [Rating: 10] Favorites ----------- Power Light Ion Engine Engine Light Ion Engine Propulsion Aluminum Leg Leg Aluminum Leg Wheel Wheel Utility Small Storage Unit Device Improved Terrain Scanner Storage Small Storage Unit Processor Terrain Scan Processor Weapon Light Assault Rifle Energy Gun Medium Laser Energy Cannon Beam Cannon Ballistic Gun Light Assault Rifle Launcher Grenade Launcher Build | -11 -10 -9 ------- Run | Yrd Mat Mat Slots Evolved 2 | . . 2 Power . | . . . Propulsion . | . . . Utility 2 | . . 2 Weapon . | . . . Parts Attached 17 | 9 4 4 Power 2 | 1 1 . Engine 2 | 1 1 . Core . | . . . Reactor . | . . . Propulsion 4 | 4 . . Treads . | . . . Leg 2 | 2 . . Wheel 2 | 2 . . Hover . | . . . Flight . | . . . Utility 6 | 2 . 4 Device 1 | 1 . . Storage 1 | 1 . . Processor 4 | . . 4 Hackware . | . . . Protection . | . . . Artifact . | . . . Weapon 5 | 2 3 . Energy Gun 1 | 1 . . Energy Cannon 1 | . 1 . Ballistic Gun 1 | 1 . . Ballistic Cannon . | . . . Launcher 2 | . 2 . Special Weapon . | . . . Impact Weapon . | . . . Slashing Weapon . | . . . Piercing Weapon . | . . . Special Melee Weapon . | . . . Unidentified Prototypes . | . . . Parts Lost 9 | . 3 6 Power 2 | . 1 1 Propulsion 2 | . . 2 Utility 1 | . 1 . Weapon 4 | . 1 3 Highest Loss Streak 4 | . 2 4 To Critical Strikes . | . . . Average Backups 2 | . 5 4 Power . | . . . Propulsion . | . . . Utility 1 | . 3 3 Weapon . | . 1 . Tool/Special . | . . . Unused Backups 1 | . . 1 Power . | . . . Propulsion . | . . . Utility 1 | . . 1 Weapon . | . . . Tool/Special . | . . . Average Slot Usage (%) 77 | . 90 35 Engine 7 | . 10 . Leg 24 | . 28 12 Device 6 | . 8 . Storage 12 | . 14 7 Energy Cannon 8 | . 8 7 Ballistic Gun 9 | . 12 . Launcher 6 | . 6 7 Peak Build Rating 10 | 9 10 8 Average Rating 7 | 7 8 4 On Entrance 5 | . 9 7 Naked Turns 39 | . . 39 Heaviest Build 17 | 12 17 17 Greatest Support 20 | 20 20 20 Greatest Overweight (x) 2 | . . 2 Average Overweight (x) . | . . . Largest Inventory Capacity 8 | 8 8 8 Average Capacity 7 | 7 8 6 Most Carried 6 | 5 6 6 Average Carried 2 | . 5 4 Final Capacity 8 | 8 8 5 Final Carried 5 | . 5 . Class Distribution -------------------- 100% | Mutant Dominant Class ---------------- Mutant | -10/Materials Mutant | -9/Materials Resources | -11 -10 -9 ----------- Run | Yrd Mat Mat Matter Collected 456 | 358 98 . Remotely . | . . . Salvage Created 759 | 348 406 5 Parts 62 | 36 22 4 Haulers Intercepted . | . . . Recyclers Shooed 1 | . 1 . Parts Field Recycled . | . . . Retrieved Matter . | . . . Parts Self-Destructed . | . . . Prevented . | . . . Kills | -11 -10 -9 ------- Run | Yrd Mat Mat Combat Hostiles Destroyed 13 | . 13 . Guns 1 | . 1 . Cannons 3 | . 3 . AOE 9 | . 9 . Classes Destroyed 6 | 3 3 . Worker 4 | 4 . . Tunneler 9 | 9 . . Recycler 3 | 1 2 . Operator 2 | . 1 1 Swarmer 6 | . 6 . Grunt 7 | . 7 . Best Kill Streak 6 | 5 6 4 Combat Bots Only 4 | . 4 . Max Kills in Single Turn 3 | 1 3 1 Gunslinging . | . . . Exploded 3 | . 3 . Melee . | . . . Uniques/NPCs Destroyed . | . . . Combat | -11 -10 -9 -------- Run | Yrd Mat Mat Hostile Shots Fired 145 | . 73 72 Missed 45 | . 21 24 Hits 100 | . 52 48 Projectile 100 | . 52 48 Critical Strikes 2 | . 2 . Damage Taken 1263 | . 660 603 Core 582 | . 177 405 Absorbed by Shields . | . . . Core Remaining (%) 64 | 100 29 . Volleys Fired 80 | 38 38 4 Largest 2 | 2 2 2 Hottest 93 | 70 93 93 Shots Fired 149 | 76 65 8 Gun 110 | 76 34 . Cannon 23 | . 19 4 Launcher 16 | . 12 4 Special . | . . . Kinetic 72 | 38 34 . Thermal 61 | 38 19 4 Explosive 16 | . 12 4 Electromagnetic . | . . . Robot Hit Streak 5 | 5 5 5 Robot Miss Streak 5 | 4 5 1 Penetration Max . | . . . Secondary Targets . | . . . Shots Hit Robots 79 | 41 33 5 Core Hits 51 | 21 26 4 Critical Kills . | . . . Critical Parts Destroyed . | . . . Critical Strikes 1 | 1 . . Burn 1 | 1 . . Melee Attacks . | . . . Impact . | . . . Slashing . | . . . Piercing . | . . . Sneak Attacks . | . . . Combat Hostiles . | . . . Follow-up Attacks . | . . . Damage Inflicted 1704 | 429 1087 188 Guns 570 | 429 141 . Cannons 175 | . 139 36 Explosions 916 | . 807 109 Melee . | . . . Ramming 43 | . . 43 Kinetic 319 | 178 141 . Thermal 505 | 251 218 36 Explosive 837 | . 728 109 Electromagnetic . | . . . Impact . | . . . Slashing . | . . . Piercing . | . . . Highest Corruption 1 | . . 1 Average Corruption 1 | . . 1 Corruption Purged . | . . . Corruption Blocked . | . . . Overload Shots . | . . . Overflow Damage 39 | . 36 3 Projectiles . | . . . Explosions 39 | . 36 3 Melee . | . . . Knockbacks . | . . . Impact . | . . . Kinetic . | . . . Secondary . | . . . Self-Inflicted Damage 178 | . 94 84 Shots 6 | . 3 3 Rammed 10 | . . 10 Targets Rammed 10 | . . 10 Kicked . | . . . Crushed . | . . . Highest Temperature 241 | 150 241 54 Average Temperature 57 | 45 77 22 Received Heat Transfer 357 | . 237 120 Siege Activations . | . . . Martial Activations . | . . . Shielding Activations . | . . . Robots Disrupted . | . . . Combat Hostiles . | . . . Robots Corrupted . | . . . Combat Hostiles . | . . . Parts Fried . | . . . Impact Corruptions . | . . . Robots Melted . | . . . Combat Hostiles . | . . . Parts Melted 2 | 1 1 . Heat Transferred 1234 | 814 346 74 Parts Sabotaged . | . . . Parts Stolen . | . . . Parts Stripped . | . . . Power Chain Reactions . | . . . Alert | -11 -10 -9 ------- Run | Yrd Mat Mat Maximum Alert Level 1 | . 1 . Low Security (%) 91 | 100 71 100 Level 1 8 | . 28 . Level 2 . | . . . Level 3 . | . . . Level 4 . | . . . Level 5 . | . . . High Security . | . . . Max Security . | . . . Peak Influence 330 | 15 330 140 Initial 135 | . . 135 Average 38 | . 104 105 Influence Increases 659 | 70 524 65 Destroy 0b10 Robot/C 260 | . 260 . Destroy 0b10 Robot/NC 90 | 70 15 5 Destroy Leader 50 | . 50 . Disable Machine 45 | . 45 . Destroy Structure 109 | . 79 30 Lose Combat Pursuer 105 | . 75 30 Influence Decreases 579 | 70 202 307 Entered New Map 187 | . . 187 Time Decay 302 | 70 172 60 Lost Part 90 | . 30 60 Squads Dispatched 5 | . 3 2 Investigation 1 | . 1 . Extermination . | . . . Reinforcement 4 | . 2 2 Assault . | . . . Garrison . | . . . Intercept . | . . . Searches Triggered . | . . . Construction Impeded . | . . . Haulers Reinforced . | . . . Active Scanning Responses . | . . . Cargo Convoy Interrupts . | . . . Stealth | -11 -10 -9 --------- Run | Yrd Mat Mat Distress Signals 1 | . . 1 Communications Jammed . | . . . Distress Signals . | . . . Times Spotted 44 | . 20 24 Peak Tracking Total 22 | . 6 22 Tactical Retreats 5 | . 3 2 Traps | -11 -10 -9 ------- Run | Yrd Mat Mat Traps Triggered 1 | . 1 . Indirectly . | . . . Trap Hack Attempts . | . . . Triggered . | . . . Disarmed . | . . . Reprogrammed . | . . . Reused . | . . . Traps Extracted . | . . . Installed . | . . . Triggered . | . . . Machines | -11 -10 -9 ---------- Run | Yrd Mat Mat Machines Disabled 3 | . 3 . Max in Single Turn 3 | . 3 . Machines Repaired . | . . . Machines Dismantled . | . . . Machines Sabotaged . | . . . Overloaded Fab Kills . | . . . Hacking | -11 -10 -9 --------- Run | Yrd Mat Mat Machines Accessed . | . . . Terminals . | . . . Fabricators . | . . . Repair Stations . | . . . Recycling Units . | . . . Scanalyzers . | . . . Garrison Access . | . . . Total Hacks . | . . . Successful . | . . . Failed . | . . . Catastrophic . | . . . Database Lockouts . | . . . Manual . | . . . Terminals . | . . . Fabricators . | . . . Repair Stations . | . . . Recycling Units . | . . . Scanalyzers . | . . . Garrison Access . | . . . Terminal Hacks . | . . . Fabricator Hacks . | . . . Repair Station Hacks . | . . . Recycling Unit Hacks . | . . . Scanalyzer . | . . . Garrison Access Hacks . | . . . Unauthorized Hacks . | . . . Terminals . | . . . Fabricators . | . . . Repair Stations . | . . . Recycling Units . | . . . Scanalyzers . | . . . Garrison Access . | . . . Data Cores Recovered 1 | . . 1 Used . | . . . Hacking Detections . | . . . Full Trace Events . | . . . Feedback Events . | . . . Feedback Blocked . | . . . Robot Schematics Acquired . | . . . Robots Built . | . . . Authchips . | . . . Time . | . . . Total Robot Build Rating . | . . . Part Schematics Acquired . | . . . Parts Built . | . . . Authchips . | . . . Time . | . . . Total Part Build Rating . | . . . Parts Repaired . | . . . Time . | . . . Parts Recycled . | . . . Recycled Matter . | . . . Retrieved Matter . | . . . Retrieved Components . | . . . Parts Scanalyzed . | . . . Part Schematics Acquired . | . . . Parts Damaged . | . . . Bothacking | -11 -10 -9 ------------ Run | Yrd Mat Mat Used RIF Installer . | . . . Robots Hacked . | . . . Non-combat . | . . . Combat . | . . . Robot Hacks Applied . | . . . Relay Couplers Released . | . . . Fabnet Peak Effective % . | . . . Robots Rewired . | . . . Allies Hacked . | . . . Hacks Repelled . | . . . Allies | -11 -10 -9 -------- Run | Yrd Mat Mat Total Allies . | . . . Largest Group . | . . . Highest-Rated Group . | . . . Highest-Rated Ally . | . . . Total Orders . | . . . Ally Attacks . | . . . Total Damage . | . . . Kills . | . . . Allies Corrupted . | . . . Allies Melted . | . . . Intel | -11 -10 -9 ------- Run | Yrd Mat Mat Active Infowar (turns) 1021 | 742 279 . Terrain 1021 | 742 279 . Robot Analysis Total . | . . . Derelict Logs Recovered . | . . . Drone Launches . | . . . Drone Recoveries . | . . . Exploration | -11 -10 -9 ------------- Run | Yrd Mat Mat Turns Passed 1628 | 1033 462 133 Spaces Moved 531 | 139 269 123 Core 99 | 25 . 74 Treads . | . . . Legs 432 | 114 269 49 Wheels . | . . . Hover . | . . . Flight . | . . . Fastest Speed 50 | 50 120 50 Average Speed 107 | 107 120 82 Slowest Speed 150 | 120 120 150 Overloaded Moves . | . . . Propulsion Burnouts . | . . . Robots Hopped . | . . . Potential Cave-ins . | . . . Cave-ins Triggered . | . . . Exploration Rate (%) 36 | 8 68 33 Regions Visited 2 Branch Regions . Pre-discovered Areas . | . . . Known Exits Taken . | . . . Unknown Exits Taken 2 | 1 1 . Scrap Searched . | . . . Spaces Dug . | . . . Terrain Destroyed 114 | . 85 29 Melee . | . . . Projectile . | . . . AOE 114 | . 85 29 Terrain Rammed . | . . . Walls Destroyed . | . . . Machines Disabled . | . . . Actions | -11 -10 -9 --------- Run | Yrd Mat Mat Total 1453 | 956 350 147 Wait 785 | 754 29 2 Move 529 | 138 268 123 Hop . | . . . Pick Up 18 | 9 8 1 Fast Attach . | . . . Attach 21 | 12 4 5 Detach 4 | 3 1 . Swap 1 | . 1 . Drop 5 | 2 1 2 Fire 80 | 38 38 4 Melee . | . . . Ram 10 | . . 10 Kick . | . . . Crush . | . . . Escape Stasis . | . . . Rewire . | . . . Trap . | . . . Miscellaneous . | . . . Route ------- -11/Scrapyard -10/Materials -9/Materials History --------- Turn | Location | Event 3 | -11/Scrapyard | Discovered new exit (range 14) 1034 | -11/Scrapyard | Entered Materials 1035 | -10/Materials | Build established: Mutant 1445 | -10/Materials | Core integrity fell below 50% 1461 | -10/Materials | Discovered new exit (range 11) 1496 | -10/Materials | Entered another Materials area 1496 | -9/Materials | Evolved 2 slots: Utility x2 1604 | -9/Materials | Lost 4 parts (2n2w) 1606 | -9/Materials | Core integrity fell below 50% 1620 | -9/Materials | Core integrity fell below 20% 1629 | -9/Materials | Destroyed by S-10 Pest with Light Assault Rifle Last Messages --------------- C-30 ARC bursts open, deploying its payload. S-10 Pest unfolds itself. O-16 Technician uses terminal to summon reinforcements. ALERT: Hostiles spotted, dispatching reinforcements to Terminal M009. O-16 Technician locks terminal. T-07 Excavator is excavating. W-16 Scout sends out distress signal. [Achievement: Hunted] ALERT: Hostiles spotted, dispatching reinforcements to Terminal M006. K-01 Serf collects debris. Slammed into G-34 Mercenary. Destabilizing: System corrupted (+1). Slammed into G-34 Mercenary. S-10 Pest destroyed. Slammed into G-34 Mercenary. Grenade Launcher destroyed. Slammed into G-34 Mercenary. Map ----- +----------------------------------------------------+ | ???????????????????# ????# | | ???????????????????# ????# | | ????????????#??????# ????# | | ??????????### ###??# ????# | | ?????????# T = ?# ????# ! | | ?????????+ # ##### | | ?????????# # | | ?????????????? / | | ???????????????????# | | ???????????????????##/####+### | | ????????????????????# # | | ????????????????????# "" #!! | | ???????????????????## S"" [ #! | | ???????????????????# "" # | | ?????????#######???## ! # | | ?????????# ######/#####+## | | ?????????# | | ?????????# = | | ?????????# s "T" | | ?????????# sg ############+## """ | | ?????????###s###?????# ######## | | ???????????#s#???????# T """ #??????? | | ???????????#s#???????# """ ######## | | ???????????#s#???????# """ + | | ???????????#s#???????# ## ### # | | ???????????#@#???????# """ ## ## # | | ???????????#g#???????# """ ## ##### | | ???????????# #??????# """ ## #???? | | ???????????# #??????## ## #???? | | ???????????#+#???????# ? ## #???? | | ???????????????????????? ## #???? | | ???????????????????????##+?#/?# #???? | | ???????????????????????????? ?? ? | | ???????????????????????????? ?? | | ???????????????????????????? ?? | | ???????????????????????????? ?? ? ? | | ????????????????????????????"?? """?? | | ??????????????????????????????? ""??? | | ??????????????????????????????? ????? | | ????????????????????????????????????? | | ????????????????????????????????????? | | ????????????????????????????????????? | | ????????????????????????????????????? | | ????????????????????????????????????? | | ????????????????????????????????????? | | ????????????????????????????????????? | | ????????????????????????????????????? | | ????????????????????????????????????? | | ????????????????????????????????????? | | ????????????????????????????????????? | +----------------------------------------------------+ Best States ------------- Heat Dissipation 28 Energy Generation 10 Energy Capacity 250 Matter Stores 300 Matter Capacity 300 Sight Range 16 Terrain Scan Range 16 Terrain Scan Density 10 Evasion (%) 55 Item Schematics ----------------- None Robot Schematics ------------------ None Fabricated ------------ Nothing Repaired ---------- Nothing Alien Tech Used ----------------- None Achievements -------------- Hunted Challenges ------------ None Game ------ Seed ImprovedMasterTrap Manual? 0 Play Time 00:14:05 Cumulative 17.2 hours Start 2025.09.18 @ 22:28:44 End 2025.09.18 @ 22:40:57 Sessions 1 Manual Loads 0 Difficulty Rogue Special Mode None Game No. 22 Rogue 4 Adventurer 0 Explorer 18 Win Type - Total 0 Types 0/0/0/0/0/0/0/0/0/0 Lore% 11 Gallery% 19 Achievement% 25 Wizard Run 0 Options --------- Layout 2 ASCII 0 Keyboard 0 Movement Mouse Keybinds 0 Fullscreen 2 Font 24/Smallcaps Map View 50x44 Zoom Use 0% Tactical HUD 0 Map Filters NONE Filters NONE Steam 1 RUN: 22cec0ec-d0aa-4e7d-b1f9-8ffa35302c39